bitfinex/quotes_SOLUSD_20250417
["timestamp","ask_amount","ask_price","bid_price","bid_amount"]
[1744896722593,45.94520677,133.19,133.17,16.16]
[1744896722796,45.94520677,133.2,133.17,16.16]
[1744896723002,45.94520677,133.21,133.17,16.16]
[1744896723198,45.94520677,133.2,133.17,16.16]
[1744896723396,45.94520677,133.18,133.14,45.94520677]
[1744896723602,45.94520677,133.17,133.13,16.16]
[1744896723781,45.94520677,133.16,133.13,16.16]
[1744896723981,45.94520677,133.15,133.1,45.94520677]
[1744896724186,45.94520677,133.14,133.1,45.94520677]
[1744896724805,45.94520677,133.15,133.1,53.45832812]
[1744896725113,45.94520677,133.15,133.1,53.45831525]
[1744896725405,45.94520677,133.13,133.09,46.08736834]
[1744896725583,45.94520677,133.14,133.1,45.94520677]
[1744896725779,45.94520677,133.14,133.09,46.08736834]
[1744896725984,45.94520677,133.14,133.1,45.94520677]
[1744896726206,82.8,133.17,133.13,45.94520677]
[1744896726399,45.94520677,133.18,133.14,45.94520677]
[1744896726610,90.30654025,133.22,133.17,45.94520677]
[1744896726786,0.063,133.24,133.21,45.94520677]
[1744896726985,0.063,133.24,133.18,16.16]
[1744896727203,0.063,133.24,133.2,45.94520677]
[1744896727394,53.51368025,133.24,133.2,45.94520677]
[1744896727794,0.063,133.24,133.2,53.45268781]
[1744896728016,0.063,133.24,133.21,45.94520677]
[1744896728504,0.063,133.24,133.22,45.94520677]
[1744896728696,0.063,133.24,133.21,45.94520677]
[1744896729517,0.063,133.24,133.2,46.22952991]
[1744896729813,0.063,133.24,133.21,45.94520677]
[1744896730285,45.94520677,133.22,133.16,16.16]
[1744896730607,45.94520677,133.19,133.16,16.16]
[1744896730906,45.94520677,133.2,133.16,16.16]
[1744896731288,45.94520677,133.17,133.09,7.51371252]
[1744896731505,45.94520677,133.13,133.08,59.85247274]
[1744896731717,45.94520677,133.13,133.09,45.94520677]
[1744896731889,45.94520677,133.13,133.08,7.51416597]
[1744896732097,53.4563277,133.14,133.09,45.94520677]
[1744896732803,53.4563277,133.14,133.09,46.22952991]
[1744896733013,53.4563277,133.14,133.08,7.51416597]
[1744896733308,45.94520677,133.13,133.07,49.67469069]
[1744896733511,45.94520677,133.12,133.07,16.16]
[1744896733807,45.94520677,133.1,133.07,16.16]
[1744896734310,45.94520677,133.11,133.07,16.16]
[1744896735014,45.94520677,133.12,133.07,62.10520677]
[1744896735212,45.94520677,133.11,133.07,62.10520677]
[1744896735395,45.94520677,133.11,133.07,16.16]
[1744896735718,45.94520677,133.1,133.06,45.94520677]
[1744896736012,45.94520677,133.11,133.06,45.94520677]
[1744896736187,45.94520677,133.12,133.08,45.94520677]
[1744896736391,45.94520677,133.12,133.07,45.94520677]
[1744896736591,45.94520677,133.11,133.07,45.94520677]
[1744896736793,37.42687583,133.14,133.08,45.94520677]
[1744896736994,45.94520677,133.12,133.08,45.94520677]
[1744896737193,45.94520677,133.12,133.07,45.94520677]
[1744896737602,108.8,133.16,133.1,45.94520677]
[1744896737787,45.94520677,133.12,133.08,45.94520677]
[1744896737988,45.94520677,133.12,133.07,46.22952991]
[1744896738219,45.94520677,133.1,133.06,46.22952991]
[1744896738386,45.94520677,133.13,133.09,45.94520677]
[1744896738713,45.94520677,133.14,133.1,45.94520677]
[1744896738895,45.94520677,133.14,133.09,45.94520677]
[1744896739597,45.94520677,133.13,133.09,45.94520677]
[1744896740001,128.74520677,133.16,133.11,45.94520677]
[1744896740216,82.8,133.16,133.14,45.94520677]
[1744896740396,7.50874171,133.18,133.14,45.94520677]
[1744896740597,7.50874171,133.18,133.15,45.94520677]
[1744896740904,45.94520677,133.2,133.16,45.94520677]
[1744896741089,82.8,133.2,133.18,45.94520677]
[1744896741303,0.063,133.24,133.19,45.94520677]
[1744896741499,0.063,133.24,133.23,45.94520677]
[1744896741901,46.00820677,133.24,133.2,45.94520677]
[1744896742195,45.94520677,133.23,133.18,45.94520677]
[1744896742398,46.00820677,133.24,133.19,45.94520677]
[1744896743221,45.94520677,133.23,133.19,45.94520677]
[1744896743718,53.4512955,133.23,133.19,45.94520677]
[1744896743919,46.00820677,133.24,133.2,45.94520677]
[1744896744423,53.51363535,133.24,133.19,45.94520677]
[1744896744925,45.94520677,133.21,133.17,45.94520677]
[1744896745095,45.94520677,133.21,133.16,62.20520677]
[1744896745496,45.94520677,133.2,133.16,62.20520677]
[1744896745698,45.94520677,133.2,133.16,69.71486109]
[1744896745900,45.94520677,133.22,133.16,23.76965432]
[1744896746112,7.505817,133.23,133.2,45.94520677]
[1744896746420,45.94520677,133.22,133.17,46.22952991]
[1744896746618,45.94520677,133.2,133.16,62.20520677]
[1744896746802,45.94520677,133.22,133.17,45.94520677]
[1744896747204,7.505817,133.23,133.18,45.94520677]
[1744896747721,45.94520677,133.23,133.18,53.45360565]
[1744896748123,45.94520677,133.2,133.16,16.26]
[1744896748307,45.94520677,133.21,133.16,69.71494201]
[1744896748621,45.94520677,133.22,133.17,0.28432314]
[1744896748822,0.063,133.24,133.21,45.94520677]
[1744896749323,0.063,133.24,133.23,45.94520677]
[1744896749525,0.063,133.24,133.21,16.26]
[1744896749723,0.063,133.24,133.21,62.20520677]
[1744896750108,0.063,133.24,133.21,69.7120959]
[1744896750426,0.063,133.24,133.21,62.20520677]
[1744896750629,0.063,133.24,133.22,45.94520677]
[1744896751009,0.063,133.24,133.23,45.94520677]
[1744896751725,0.063,133.24,133.23,53.45102377]
[1744896751925,0.063,133.24,133.23,45.94520677]
[1744896752124,0.063,133.25,133.24,0.28432314]
[1744896752425,0.063,133.25,133.24,72.22952991]
[1744896753422,0.063,133.26,133.24,64.87917877]
[1744896753627,0.063,133.26,133.25,79.73422034]
[1744896753831,0.063,133.26,133.25,98.3838692]
[1744896754810,0.063,133.28,133.26,18.933972]
[1744896755018,0.063,133.28,133.27,107.13917877]
[1744896755435,0.063,133.28,133.27,88.48952991]
[1744896755820,0.063,133.28,133.27,95.9930941]
[1744896756417,0.063,133.28,133.27,114.64274296]
[1744896758233,0.063,133.28,133.27,160.58794973]
[1744896758416,1e-08,133.28,133.27,134.58794973]
[1744896758617,0.063,133.34,133.3,44.64964886]
[1744896758817,0.063,133.34,133.33,110.82438554]
[1744896759033,0.063,133.38,133.37,26.14216157]
[1744896759225,0.063,133.38,133.37,90.87917877]
[1744896759626,0.063,133.38,133.37,98.37711683]
[1744896759812,0.063,133.38,133.37,79.72746797]
[1744896760019,0.063,133.38,133.33,16.24]
[1744896760235,0.063,133.38,133.34,44.933972]
[1744896760414,0.063,133.38,133.36,45.94520677]
[1744896760745,0.063,133.38,133.37,45.94520677]
[1744896760909,0.063,133.38,133.34,33.78394815]
[1744896761112,0.063,133.38,133.35,45.94520677]
[1744896761312,45.94520677,133.37,133.32,16.24]
[1744896761529,0.063,133.38,133.31,45.94520677]
[1744896761530,45.94520677,133.35,133.31,45.94520677]
[1744896761816,45.94520677,133.32,133.27,16.24]
[1744896762029,45.94520677,133.31,133.27,16.24]
[1744896762351,45.94520677,133.28,133.23,23.74557539]
[1744896762515,45.94520677,133.27,133.23,62.18520677]
[1744896762838,45.94520677,133.27,133.23,16.24]
[1744896763051,45.94520677,133.26,133.21,45.94520677]
[1744896763339,45.94520677,133.25,133.21,45.94520677]
[1744896763535,53.4508129,133.24,133.2,45.94520677]
[1744896763838,53.4508129,133.24,133.19,62.18520677]
[1744896764045,45.94520677,133.25,133.21,45.94520677]
[1744896764245,45.94520677,133.24,133.19,16.24]
[1744896764444,45.94520677,133.24,133.2,45.94520677]
[1744896765341,45.94520677,133.25,133.2,45.94520677]
[1744896765532,53.45025039,133.25,133.2,45.94520677]
[1744896766039,45.94520677,133.25,133.21,45.94520677]
[1744896766243,53.44939545,133.26,133.21,45.94520677]
[1744896766449,45.94520677,133.26,133.22,45.94520677]
[1744896767025,53.44949516,133.26,133.21,46.22952991]
[1744896767221,45.94520677,133.27,133.23,45.94520677]
[1744896767428,53.44775613,133.29,133.24,45.94520677]
[1744896767954,45.94520677,133.28,133.23,46.22952991]
[1744896768650,45.94520677,133.28,133.24,45.94520677]
[1744896768956,45.94520677,133.27,133.23,45.94520677]
[1744896769137,45.94520677,133.27,133.22,45.94520677]
[1744896769856,7.50330202,133.28,133.21,71.94520677]
[1744896769857,45.94520677,133.25,133.21,71.94520677]
[1744896770040,45.94520677,133.25,133.2,46.08736834]
[1744896771253,53.45022914,133.25,133.2,0.28432314]
[1744896771544,53.45022914,133.25,133.2,46.22952991]
[1744896771545,7.50502237,133.25,133.2,46.22952991]
[1744896771724,53.44956056,133.26,133.21,45.94520677]
[1744896772255,45.94520677,133.27,133.23,45.94520677]
[1744896772425,45.94520677,133.28,133.23,45.94520677]
[1744896772933,45.94520677,133.25,133.2,26.28432314]
[1744896773130,45.94520677,133.26,133.21,45.94520677]
[1744896773326,53.44963371,133.26,133.22,45.94520677]
[1744896773722,7.50378917,133.27,133.23,45.94520677]
[1744896773938,53.44842333,133.28,133.23,45.94520677]
[1744896774149,7.50036022,133.33,133.27,45.94520677]
[1744896774320,7.50036022,133.33,133.29,45.94520677]
[1744896774727,45.94520677,133.31,133.27,45.94520677]
[1744896775039,45.94520677,133.3,133.25,46.22952991]
[1744896775241,45.94520677,133.3,133.26,45.94520677]
[1744896775438,53.44651949,133.31,133.26,45.94520677]
[1744896776740,53.44651949,133.31,133.27,45.94520677]
[1744896777030,45.94520677,133.3,133.26,45.94520677]
[1744896777835,53.44756617,133.3,133.26,45.94520677]
[1744896778038,53.44756617,133.3,133.24,16.72]
[1744896778039,45.94520677,133.28,133.24,16.72]
[1744896778554,45.94520677,133.29,133.24,62.66520677]
[1744896779049,45.94520677,133.28,133.24,16.72]
[1744896779343,45.94520677,133.26,133.21,45.94520677]
[1744896779547,45.94520677,133.23,133.17,80.7]
[1744896779727,45.94520677,133.23,133.19,0.28432314]
[1744896780131,53.45106875,133.23,133.16,35.36964886]
[1744896780351,53.45106875,133.23,133.19,45.94520677]
[1744896780546,45.94520677,133.21,133.17,45.94520677]
[1744896780751,45.94520677,133.21,133.16,62.66520677]
[1744896780939,45.94520677,133.21,133.16,70.17493552]
[1744896781337,45.94520677,133.21,133.16,62.66520677]
[1744896781527,45.94520677,133.2,133.16,16.72]
[1744896781732,45.94520677,133.19,133.16,16.72]
[1744896781932,53.45308197,133.2,133.15,45.94520677]
[1744896782835,82.8,133.22,133.18,45.94520677]
[1744896783046,90.30639043,133.22,133.18,45.94520677]
[1744896783851,82.8,133.22,133.19,45.94520677]
[1744896784061,7.50533949,133.24,133.2,45.94520677]
[1744896784233,53.45054626,133.24,133.2,45.94520677]
[1744896784428,128.74520677,133.27,133.22,45.94520677]
[1744896784634,90.30371103,133.27,133.23,45.94520677]
[1744896784859,45.94520677,133.24,133.2,45.94520677]
[1744896785328,45.94520677,133.23,133.19,45.94520677]
[1744896785655,45.94520677,133.2,133.11,7.51258357]
[1744896785962,45.94520677,133.15,133.12,0.28432314]
[1744896786251,45.94520677,133.15,133.09,37.49679699]
[1744896786252,45.94520677,133.15,133.1,53.4580981]
[1744896786568,45.94520677,133.15,133.09,0.063]
[1744896786569,45.94520677,133.13,133.09,0.063]
[1744896786863,45.94520677,133.1,133.09,0.063]
[1744896787032,64.59485563,133.1,133.09,0.063]
[1744896788170,72.10800363,133.1,133.09,0.063]
[1744896789967,72.10800363,133.1,133.08,0.063]
[1744896790271,18.64964886,133.07,133.02,0.03]
[1744896790566,45.94520677,133.03,133.02,0.03]
[1744896791649,7.51540658,133.06,133.02,0.03]
[1744896791853,53.46061335,133.06,133.02,0.03]
[1744896792064,45.94520677,133.05,133.02,0.03]
[1744896792264,53.46061335,133.06,133.02,0.03]
[1744896792574,18.64964886,133.07,133.03,45.94520677]
[1744896792575,45.94520677,133.07,133.03,45.94520677]
[1744896793366,45.94520677,133.04,133.02,0.03]
[1744896794771,45.94520677,133.03,133.02,0.03]
[1744896795272,64.59485563,133.03,133.02,0.03]
[1744896795572,72.11195703,133.03,133.02,0.03]
[1744896795776,44.64964886,133.02,133.01,0.03]
[1744896795956,142.9924624,133.02,133.01,0.03]
[1744896796275,97.04725563,133.02,133.01,0.03]
[1744896796475,97.33157877,133.02,133.01,1e-08]
[1744896796665,26.0,132.96,132.94,0.03]
[1744896796873,0.28432314,132.94,132.93,0.03]
[1744896797188,26.0,132.88,132.86,0.03]
[1744896797371,110.5400624,132.87,132.86,0.03]
[1744896797554,72.12100901,132.87,132.86,0.03]
[1744896798084,118.35053892,132.87,132.86,1e-08]
[1744896798278,26.0,132.84,132.78,2.6059336]
[1744896798469,18.64964886,132.83,132.78,2.6059336]
[1744896798771,45.94520677,132.82,132.78,8.68725985]
[1744896798955,26.0,132.85,132.78,54.63246662]
[1744896799153,45.94520677,132.8,132.78,8.68725985]
[1744896799354,45.94520677,132.79,132.78,8.68725985]
[1744896800361,44.64964886,132.83,132.78,8.68725985]
[1744896800562,26.0,132.86,132.79,45.94520677]
[1744896800756,45.94520677,132.82,132.78,16.21849255]
[1744896800953,45.94520677,132.81,132.78,8.68725985]
[1744896801373,71.94520677,132.86,132.78,10.1370144]
[1744896801573,45.94520677,132.83,132.79,53.47533217]
[1744896801757,45.94520677,132.84,132.8,45.94520677]
[1744896802167,45.94520677,132.84,132.79,53.47533217]
[1744896802372,45.94520677,132.83,132.79,53.47533217]
[1744896802568,45.94520677,132.83,132.79,7.5301254]
[1744896802777,45.94520677,132.86,132.82,45.94520677]
[1744896802980,24.20613703,132.88,132.82,45.94520677]
[1744896803166,45.94520677,132.86,132.79,7.5301254]
[1744896803478,45.94520677,132.85,132.8,45.94520677]
[1744896803667,45.94520677,132.83,132.79,53.47533217]
[1744896803872,45.94520677,132.81,132.78,10.13714889]
[1744896804285,45.94520677,132.8,132.78,2.6059336]
[1744896804585,45.94520677,132.79,132.78,2.6059336]
[1744896804892,118.07074995,132.79,132.78,2.6059336]
[1744896805267,72.12554318,132.79,132.78,2.6059336]
[1744896805872,118.07074995,132.79,132.78,2.6059336]
[1744896806983,118.35507309,132.79,132.78,2.6059336]
[1744896807185,118.07074995,132.79,132.78,2.6059336]
[1744896807383,72.12554318,132.79,132.78,2.6059336]
[1744896807682,118.07074995,132.79,132.78,2.6059336]
[1744896808383,118.35507309,132.79,132.78,2.6059336]
[1744896809178,118.07074995,132.79,132.78,2.6059336]
[1744896809380,72.12554318,132.79,132.78,2.6059336]
[1744896809688,118.07074995,132.79,132.78,2.6059336]
[1744896811481,118.35507309,132.79,132.78,1e-08]
[1744896811675,118.07074995,132.79,132.78,1e-08]
[1744896811988,18.64964886,132.75,132.67,7.53749905]
[1744896812201,45.94520677,132.72,132.67,7.53749905]
[1744896812493,42.68,132.76,132.71,45.94520677]
[1744896812675,45.94520677,132.75,132.7,45.94520677]
[1744896812988,45.94520677,132.75,132.7,7.53528327]
[1744896813179,45.94520677,132.72,132.68,7.53693096]
[1744896813376,45.94520677,132.71,132.67,7.53732968]
[1744896813679,18.64964886,132.75,132.67,7.53732968]
[1744896813680,45.94520677,132.7,132.67,3.7764696]
[1744896813901,45.94520677,132.68,132.67,3.7764696]
[1744896814190,64.59485563,132.72,132.67,3.7764696]
[1744896814191,18.64964886,132.72,132.67,3.7764696]
[1744896814367,26.0,132.73,132.67,49.72167637]
[1744896814563,45.94520677,132.72,132.67,49.72167637]
[1744896814803,45.94520677,132.71,132.67,11.31357381]
[1744896815091,45.94520677,132.7,132.67,3.7764696]
[1744896815271,45.94520677,132.71,132.67,11.31386601]
[1744896815475,45.94520677,132.71,132.67,3.7764696]
[1744896815671,45.94520677,132.68,132.67,3.7764696]
[1744896816290,64.59485563,132.68,132.67,3.7764696]
[1744896816985,26.18657982,132.68,132.67,3.7764696]
[1744896817168,72.13178659,132.68,132.67,3.7764696]
[1744896817370,45.94520677,132.68,132.67,3.7764696]
[1744896817667,79.48111008,132.7,132.67,3.7764696]
[1744896817864,33.53590331,132.7,132.67,3.7764696]
[1744896818069,45.94520677,132.72,132.67,3.7764696]
[1744896818270,71.01698349,132.74,132.67,3.7764696]
[1744896818490,45.94520677,132.71,132.67,3.7764696]
[1744896818667,71.01698349,132.74,132.67,3.7764696]
[1744896818868,45.94520677,132.7,132.67,3.7764696]
[1744896819108,45.94520677,132.72,132.67,57.25905867]
[1744896819276,45.94520677,132.71,132.67,3.7764696]
[1744896819476,45.94520677,132.7,132.67,3.7764696]
[1744896819993,45.94520677,132.71,132.67,11.31389042]
[1744896820296,7.53432129,132.73,132.67,57.25909719]
[1744896820483,45.94520677,132.74,132.69,45.94520677]
[1744896820677,45.94520677,132.75,132.7,45.94520677]
[1744896821087,45.94520677,132.75,132.71,7.53522718]
[1744896821292,45.94520677,132.79,132.71,7.53522718]
[1744896821293,45.94520677,132.79,132.71,53.48043395]
[1744896821485,45.94520677,132.75,132.7,7.53557197]
[1744896821792,45.94520677,132.74,132.7,53.48077874]
[1744896822201,45.94520677,132.75,132.7,53.48077874]
[1744896822375,18.64964886,132.77,132.71,45.94520677]
[1744896822576,45.94520677,132.77,132.72,45.94520677]
[1744896822777,45.94520677,132.78,132.73,45.94520677]
[1744896822974,7.53032632,132.8,132.73,53.47919622]
[1744896823277,45.94520677,132.75,132.71,7.53522718]
[1744896823488,45.94520677,132.74,132.7,79.48077281]
[1744896823683,45.94520677,132.74,132.7,7.53556604]
[1744896823886,45.94520677,132.76,132.71,45.94520677]
[1744896824400,45.94520677,132.75,132.7,53.48077281]
[1744896824894,7.53175461,132.78,132.71,45.94520677]
[1744896825099,16.7,132.82,132.76,45.94520677]
[1744896825298,45.94520677,132.8,132.75,45.94520677]
[1744896825473,45.94520677,132.77,132.72,63.30520677]
[1744896825978,45.94520677,132.78,132.73,45.94520677]
[1744896826377,45.94520677,132.79,132.74,45.94520677]
[1744896826584,45.94520677,132.79,132.75,7.53295668]
[1744896826792,7.53028692,132.8,132.75,53.47816345]
[1744896826990,45.94520677,132.79,132.75,7.53295668]
[1744896827301,45.94520677,132.78,132.73,53.47929853]
[1744896827501,7.53028692,132.8,132.74,45.94520677]
[1744896827703,45.94520677,132.79,132.74,45.94520677]
[1744896827910,45.94520677,132.78,132.73,7.53409176]
[1744896828101,45.94520677,132.76,132.72,24.89442796]
[1744896828295,45.94520677,132.77,132.72,70.83963473]
[1744896828493,45.94520677,132.77,132.73,45.94520677]
[1744896828710,45.94520677,132.78,132.73,7.5335858]
[1744896828888,45.94520677,132.78,132.73,57.25526217]
[1744896829586,7.53037457,132.8,132.73,57.25526217]
[1744896829982,45.94520677,132.8,132.76,45.94520677]
[1744896830210,45.94520677,132.81,132.77,45.94520677]
[1744896830711,24.22924928,132.82,132.76,45.94520677]
[1744896830894,45.94520677,132.79,132.75,45.94520677]
[1744896831384,45.94520677,132.79,132.74,45.94520677]
[1744896832013,45.94520677,132.79,132.75,7.53295668]
[1744896832210,45.94520677,132.78,132.75,7.53295668]
[1744896832380,26.35343723,132.81,132.73,49.72167637]
[1744896832717,45.94520677,132.74,132.73,3.7764696]
[1744896833211,17.36,132.77,132.73,3.7764696]
[1744896833414,45.94520677,132.74,132.73,3.7764696]
[1744896834113,53.47873095,132.74,132.73,3.7764696]
[1744896834310,45.94520677,132.74,132.73,3.7764696]
[1744896834724,53.47873095,132.74,132.73,3.7764696]
[1744896834902,7.53319438,132.75,132.73,3.7764696]
[1744896835099,45.94520677,132.74,132.73,3.7764696]
[1744896837605,7.53245288,132.76,132.73,3.7764696]
[1744896837800,7.53148391,132.78,132.73,11.31045135]
[1744896838002,336.55980172,132.84,132.76,45.94520677]
[1744896838307,336.55980172,132.84,132.74,45.94520677]
[1744896838308,45.94520677,132.78,132.74,45.94520677]
[1744896838510,45.94520677,132.79,132.74,45.94520677]
[1744896838805,45.94520677,132.77,132.73,3.7764696]
[1744896839104,45.94520677,132.76,132.73,3.7764696]
[1744896839305,45.94520677,132.77,132.73,11.31036389]
[1744896839491,45.94520677,132.77,132.73,3.7764696]
[1744896839681,17.36,132.8,132.73,11.31054352]
[1744896839891,26.34946924,132.83,132.76,45.94520677]
[1744896840109,45.94520677,132.8,132.76,45.94520677]
[1744896840315,18.81808766,132.86,132.77,17.36]
[1744896840606,45.94520677,132.84,132.79,45.94520677]
[1744896840809,45.94520677,132.83,132.79,45.94520677]
[1744896841006,0.063,132.87,132.82,71.94520677]
[1744896841207,0.063,132.87,132.84,45.94520677]
[1744896841621,0.063,132.87,132.85,45.94520677]
[1744896841810,0.063,132.87,132.86,45.94520677]
[1744896842109,0.063,132.87,132.82,50.04592314]
[1744896842308,0.063,132.87,132.86,45.94520677]
[1744896842510,0.063,132.87,132.83,26.34946924]
[1744896842728,46.00820677,132.87,132.83,7.52841978]
[1744896842894,0.063,132.87,132.84,45.94520677]
[1744896843090,0.063,132.87,132.86,45.94520677]
[1744896843515,0.063,132.87,132.84,64.72520677]
[1744896843717,0.063,132.87,132.85,45.94520677]
[1744896844106,0.063,132.87,132.85,47.05483197]
[1744896844314,0.063,132.87,132.86,7.52671985]
[1744896844694,0.063,132.87,132.85,8.63674642]
[1744896845007,45.94520677,132.86,132.85,1.1096252]
[1744896845389,46.00820677,132.87,132.85,1.1096252]
[1744896845605,0.063,132.87,132.86,45.94520677]
[1744896845812,0.063,132.87,132.85,1.1096252]
[1744896845813,0.063,132.87,132.85,8.63689448]
[1744896846011,0.063,132.87,132.86,45.94520677]
[1744896846312,0.063,132.87,132.85,47.05483197]
[1744896846498,0.063,132.87,132.85,1.1096252]
[1744896846692,0.063,132.87,132.86,45.94520677]
[1744896847299,0.063,132.87,132.85,54.5818055]
[1744896847501,0.063,132.87,132.85,1.1096252]
[1744896847732,46.00820677,132.87,132.85,1.1096252]
[1744896848095,0.063,132.87,132.85,54.58210075]
[1744896848290,0.063,132.87,132.86,99.41713339]
[1744896848518,46.00820677,132.95,132.86,118.48145653]
[1744896848827,46.00820677,132.95,132.9,45.94520677]
[1744896849032,0.063,132.95,132.92,45.94520677]
[1744896849696,0.063,132.95,132.89,0.28432314]
[1744896849891,0.063,132.95,132.93,45.94520677]
[1744896850099,0.063,132.95,132.93,47.37436967]
[1744896850427,0.063,132.95,132.94,53.46739723]
[1744896851802,0.063,132.95,132.94,72.40136923]
[1744896852401,0.063,132.95,132.94,98.40136923]
[1744896852603,0.03,133.01,133.0,45.94520677]
[1744896852915,0.03,133.01,132.99,45.94520677]
[1744896853116,45.97520677,133.01,132.98,18.78]
[1744896853434,0.03,133.01,133.0,45.94520677]
[1744896853823,0.03,133.01,132.99,45.94520677]
[1744896854208,0.03,133.01,133.0,45.94520677]
[1744896854902,0.03,133.01,133.0,53.46400376]
[1744896855129,0.03,133.01,133.0,45.94520677]
[1744896855302,0.03,133.01,132.99,7.51912295]
[1744896855505,0.03,133.01,133.0,45.94520677]
[1744896856232,0.03,133.01,133.0,46.22952991]
[1744896856621,0.03,133.01,133.0,45.94520677]
[1744896856823,0.03,133.01,132.99,45.94520677]
[1744896857132,45.97520677,133.01,132.97,26.0]
[1744896857433,45.94520677,133.0,132.96,64.70520677]
[1744896857634,45.94520677,132.99,132.96,18.76]
[1744896858330,0.03,133.01,132.96,18.76]
[1744896858533,45.97520677,133.01,132.96,64.70520677]
[1744896858838,0.03,133.01,132.98,45.94520677]
[1744896859030,0.03,133.01,132.99,45.94520677]
[1744896859835,0.03,133.01,132.97,0.28432314]
[1744896860038,0.03,133.01,132.99,45.94520677]
[1744896860337,0.03,133.01,133.0,46.22952991]
[1744896860636,0.03,133.01,132.99,26.0]
[1744896861214,0.03,133.01,132.97,0.28432314]
[1744896861215,45.97520677,133.01,132.97,46.22952991]
[1744896861410,0.03,133.01,132.97,45.94520677]
[1744896861635,45.94520677,133.0,132.96,26.0]
[1744896862132,45.94520677,133.0,132.95,45.94520677]
[1744896862435,52.47124886,132.99,132.93,1.4291629]
[1744896862655,26.0,132.91,132.86,45.94520677]
[1744896862857,45.94520677,132.9,132.85,45.94520677]
[1744896863064,26.0,132.91,132.88,45.94520677]
[1744896863272,26.32766661,132.94,132.88,45.94520677]
[1744896863273,26.0,132.9,132.88,45.94520677]
[1744896864043,26.0,132.91,132.89,45.94520677]
[1744896864743,33.52409402,132.91,132.89,0.14216157]
[1744896865350,33.52409402,132.91,132.89,46.08736834]
[1744896865549,79.46930079,132.91,132.88,18.76]
[1744896865752,45.94520677,132.9,132.88,18.76]
[1744896865939,45.94520677,132.89,132.88,18.76]
[1744896866129,45.94520677,132.9,132.88,18.76]
[1744896866328,45.94520677,132.9,132.85,45.94520677]
[1744896866524,45.94520677,132.89,132.85,45.94520677]
[1744896866829,53.46966124,132.9,132.85,45.94520677]
[1744896867639,37.60206044,132.98,132.89,45.94520677]
[1744896867846,7.5199278,132.98,132.94,45.94520677]
[1744896868134,26.0,132.95,132.9,19.04432314]
[1744896868334,71.94520677,132.95,132.9,19.04432314]
[1744896868540,71.94520677,132.95,132.9,64.98952991]
[1744896868743,45.94520677,132.95,132.9,64.98952991]
[1744896869043,7.52219046,132.94,132.9,64.98952991]
[1744896869464,7.52219046,132.94,132.9,19.04432314]
[1744896869749,72.27287338,132.94,132.9,18.76]
[1744896869935,26.32766661,132.94,132.91,45.94520677]
[1744896871058,18.80547615,132.94,132.91,45.94520677]
[1744896871239,64.75068292,132.94,132.9,18.76]
[1744896871554,64.75068292,132.94,132.9,64.70520677]
[1744896871742,18.80547615,132.94,132.9,64.70520677]
[1744896871945,7.52162467,132.95,132.92,45.94520677]
[1744896872455,72.27089311,132.95,132.91,45.94520677]
[1744896873454,45.94520677,132.94,132.9,18.76]
[1744896873651,26.32568634,132.95,132.9,64.70520677]
[1744896873652,98.27089311,132.95,132.9,64.70520677]
[1744896873957,98.27089311,132.95,132.9,18.76]
[1744896874150,98.27089311,132.95,132.9,64.70520677]
[1744896875046,26.0,132.93,132.92,45.94520677]
[1744896875246,26.0,132.93,132.91,45.94520677]
[1744896875643,0.03,133.01,132.92,346.42438554]
[1744896875844,7.54823171,133.01,133.0,45.94520677]
[1744896876043,0.03,133.01,133.0,46.08736834]
[1744896876245,0.03,133.01,132.99,45.94520677]
[1744896876445,7.54823171,133.01,132.98,18.7]
[1744896876653,7.54823171,133.01,132.97,45.94520677]
[1744896876654,45.94520677,133.0,132.96,64.64520677]
[1744896876847,45.94520677,133.0,132.96,18.7]
[1744896877153,45.94520677,133.0,132.96,49.0905271]
[1744896877154,7.51936235,132.99,132.96,49.0905271]
[1744896877356,56.70829534,132.99,132.94,0.28432314]
[1744896877573,30.3905271,132.97,132.93,30.67485024]
[1744896877752,30.3905271,132.96,132.92,234.6]
[1744896878343,30.3905271,132.94,132.91,18.84216157]
[1744896878541,30.3905271,132.94,132.91,18.7]
[1744896879065,7.52219046,132.94,132.91,18.7]
[1744896879864,7.52219046,132.94,132.91,49.0905271]
[1744896880373,7.52219046,132.94,132.92,30.67485024]
[1744896881040,7.52219046,132.94,132.91,18.7]
[1744896881547,7.52219046,132.94,132.91,64.83040034]
[1744896882359,72.45806695,132.94,132.91,18.7]
[1744896882543,26.32766661,132.94,132.91,64.83040034]
[1744896883065,46.13040034,132.92,132.87,46.13040034]